bitfinex/quotes_ETHUSD_20241207
["timestamp","ask_amount","ask_price","bid_price","bid_amount"]
[1733553029503,2.17009911,3988.3,3988.0,1.4042]
[1733553029706,0.86803964,3988.2,3988.0,1.4042]
[1733553029930,1.04934507,3988.3,3988.0,1.4042]
[1733553030229,0.86804679,3988.2,3988.0,1.4042]
[1733553030428,1.04934507,3988.4,3988.0,1.4042]
[1733553030734,2.17007003,3988.3,3988.0,1.4042]
[1733553030897,1.04934507,3988.4,3988.0,1.4042]
[1733553031096,2.170054,3988.3,3988.0,1.4042]
[1733553031325,1.04934507,3988.4,3988.0,1.4042]
[1733553031637,2.17003215,3988.3,3988.0,1.4042]
[1733553031929,0.86801607,3988.2,3988.0,1.4042]
[1733553032109,1.04934507,3988.4,3988.0,1.4042]
[1733553032453,2.17005433,3988.3,3988.0,1.4042]
[1733553032750,1.04934507,3988.4,3988.0,1.4042]
[1733553033035,2.17002247,3988.3,3988.0,1.4042]
[1733553033233,1.04934507,3988.4,3988.0,1.4042]
[1733553033441,2.17000207,3988.3,3988.0,1.4042]
[1733553033749,1.04934507,3988.4,3988.0,1.4042]
[1733553033909,0.86799868,3988.3,3988.0,1.4042]
[1733553034118,0.86800732,3988.2,3988.0,1.4042]
[1733553034328,1.04934507,3988.4,3988.0,1.4042]
[1733553034640,2.17003873,3988.3,3988.0,1.4042]
[1733553034809,0.86801549,3988.2,3988.0,1.4042]
[1733553035015,1.04934507,3988.3,3988.0,1.4042]
[1733553035325,0.8680237,3988.2,3988.0,1.4042]
[1733553035522,1.04934507,3988.3,3988.0,1.4042]
[1733553035727,0.868049,3988.2,3988.0,1.4042]
[1733553035930,1.04934507,3988.3,3988.0,1.4042]
[1733553036108,2.17013832,3988.2,3988.0,1.4042]
[1733553036299,1.04934507,3988.3,3988.0,1.4042]
[1733553036505,2.17024683,3988.2,3988.0,1.4042]
[1733553036734,1.04934507,3988.3,3988.0,1.4042]
[1733553036930,2.17024862,3988.2,3988.0,1.4042]
[1733553037144,1.04934507,3988.3,3988.0,1.4042]
[1733553037353,2.17025415,3988.2,3987.6,0.7625]
[1733553037519,0.86816355,3988.1,3987.8,1.40427]
[1733553037713,1.04934507,3988.3,3987.8,1.40427]
[1733553038119,2.17041723,3988.2,3987.8,1.40427]
[1733553038324,0.86816689,3988.1,3987.8,1.40427]
[1733553038502,1.04934507,3988.2,3987.8,1.40427]
[1733553038708,2.17058647,3988.1,3987.8,1.40427]
[1733553038944,1.04934507,3988.2,3987.8,1.40427]
[1733553039247,2.1706057,3988.1,3987.8,1.40427]
[1733553039547,1.04934507,3988.2,3988.0,1.4042]
[1733553039750,0.86830077,3988.1,3988.0,1.4042]
[1733553040155,0.86830077,3988.1,3987.6,0.7625]
[1733553040156,1.04934507,3988.3,3987.6,0.7625]
[1733553040364,0.86826359,3988.2,3988.1,1.40417]
[1733553040862,1.04934507,3988.5,3988.4,1.40407]
[1733553041020,3.22011092,3988.5,3988.4,1.40407]
[1733553041442,2.17076585,3988.5,3988.4,1.40407]
[1733553041833,2.17076585,3988.5,3988.2,1.40413]
[1733553042043,1.05027482,3988.3,3988.2,1.40413]
[1733553042234,3.22104067,3988.3,3988.2,1.40413]
[1733553043229,2.17076585,3988.3,3988.2,1.40413]
[1733553043533,3.22104067,3988.3,3988.2,1.40413]
[1733553043741,3.22104067,3988.3,3988.1,0.822]
[1733553043742,2.17076585,3988.3,3988.1,0.822]
[1733553044041,2.17076585,3988.3,3987.9,1.40421]
[1733553044042,1.42511566,3988.2,3987.9,1.40421]
[1733553044368,3.22248529,3988.1,3987.9,1.40421]
[1733553044535,2.17184798,3988.0,3987.9,1.40421]
[1733553044736,3.22248529,3988.0,3987.9,1.40421]
[1733553045571,2.17184798,3988.0,3987.9,1.40421]
[1733553045735,3.22288098,3988.0,3987.9,1.40421]
[1733553048369,2.17184798,3988.0,3987.9,1.40421]
[1733553048986,2.17381637,3988.0,3987.9,1.40421]
[1733553049505,3.74783398,3988.0,3987.9,1.40421]
[1733553050982,2.17381637,3988.0,3987.9,1.40421]
[1733553051186,3.74783398,3988.0,3987.9,1.40421]
[1733553052781,3.74783398,3988.0,3987.6,1.40433]
[1733553052982,0.36426363,3988.6,3987.6,1.40433]
[1733553052983,3.22542957,3987.9,3987.6,1.40433]
[1733553053164,2.17381637,3987.8,3987.6,1.40433]
[1733553053486,0.86952655,3987.7,3987.6,1.40435]
[1733553053781,1.0516132,3987.9,3987.8,1.40428]
[1733553053983,3.22544278,3987.9,3987.8,1.40428]
[1733553055920,3.22544278,3987.9,3987.6,1.40435]
[1733553056217,2.17382958,3987.8,3987.6,1.40435]
[1733553056403,0.86953183,3987.7,3987.6,1.40435]
[1733553057506,0.86953598,3987.7,3987.6,1.40435]
[1733553057816,0.86953598,3987.7,3987.5,0.822]
[1733553058019,1.0516132,3987.8,3987.5,2.22638]
[1733553058174,0.86954989,3987.7,3987.5,2.22638]
[1733553058380,1.0516132,3987.8,3987.5,2.22638]
[1733553058901,1.0516132,3987.8,3987.5,0.822]
[1733553058902,0.86953017,3987.7,3987.5,0.822]
[1733553059104,1.0516132,3987.9,3987.6,1.40435]
[1733553059308,2.17379922,3987.8,3987.6,1.40435]
[1733553059475,0.8694971,3987.7,3987.6,1.40435]
[1733553059905,1.0516132,3987.9,3987.6,1.40435]
[1733553060092,2.17372543,3987.8,3987.6,1.40435]
[1733553060394,2.17372543,3987.8,3987.3,1.40443]
[1733553060395,3.22545532,3987.7,3987.3,1.40443]
[1733553060599,3.22545682,3987.6,3987.1,1.40452]
[1733553060925,1.59265904,3987.7,3986.9,0.8137]
[1733553060926,3.22545682,3987.5,3986.9,0.8137]
[1733553061230,3.22545682,3987.4,3986.9,0.8137]
[1733553061404,3.22545682,3987.4,3986.7,1.40466]
[1733553061405,1.0516147,3987.2,3986.7,1.40466]
[1733553061603,2.17333793,3987.1,3986.5,2.21843]
[1733553061804,1.07025613,3987.2,3986.5,0.8137]
[1733553061805,0.86920045,3987.0,3986.5,0.8137]
[1733553062005,1.0516147,3987.2,3986.5,0.8137]
[1733553062210,2.17275703,3987.1,3986.8,1.4046]
[1733553062556,1.0516147,3987.2,3986.8,1.4046]
[1733553062693,0.86871593,3987.1,3986.8,1.4046]
[1733553062895,1.0516147,3987.2,3986.8,1.4046]
[1733553063095,0.86871248,3987.1,3986.8,1.4046]
[1733553063296,0.73781002,3987.5,3986.8,1.4046]
[1733553063297,1.0516147,3987.3,3986.8,1.4046]
[1733553063536,2.17112832,3987.2,3986.8,1.4046]
[1733553063691,1.0516147,3987.3,3986.8,1.4046]
[1733553063896,2.17116812,3987.2,3986.8,1.4046]
[1733553064136,1.0516147,3987.3,3986.8,1.4046]
[1733553064339,0.86822317,3987.2,3986.8,1.4046]
[1733553064534,1.0516147,3987.3,3986.5,0.8137]
[1733553064834,2.17075203,3987.2,3986.6,1.4047]
[1733553065000,1.0516147,3987.3,3986.5,0.8137]
[1733553065001,1.0516147,3987.3,3986.7,1.40464]
[1733553065331,0.86827348,3987.2,3986.7,1.40464]
[1733553065531,1.0516147,3987.4,3986.7,1.40464]
[1733553065734,3.22210781,3987.3,3986.7,1.40464]
[1733553066029,2.17049902,3987.2,3986.7,1.40464]
[1733553066199,1.0516147,3987.3,3986.7,1.40464]
[1733553066400,0.86802965,3987.2,3986.5,0.8137]
[1733553066621,1.52124654,3987.4,3986.5,0.8137]
[1733553066622,1.0516147,3987.4,3986.8,1.40462]
[1733553066925,2.17001062,3987.3,3986.8,1.40462]
[1733553067127,1.42281579,3987.4,3986.8,1.40462]
[1733553067298,2.16984102,3987.3,3986.8,1.40462]
[1733553067494,0.86793681,3987.2,3986.8,1.40462]
[1733553067733,1.0516147,3987.3,3986.6,1.4047]
[1733553067939,0.86793596,3987.2,3986.6,1.4047]
[1733553068230,0.01864143,3987.1,3986.6,1.4047]
[1733553068429,1.0516147,3987.3,3986.6,1.4047]
[1733553068632,2.16939976,3987.2,3986.6,1.4047]
[1733553068835,0.86778507,3987.1,3986.7,1.40465]
[1733553069147,1.0516147,3987.2,3986.7,1.40465]
[1733553069309,2.1689766,3987.1,3986.7,1.40465]
[1733553069636,1.0516147,3987.2,3986.7,1.40465]
[1733553069933,2.16900945,3987.1,3986.7,1.40465]
[1733553070232,2.54631446,3987.3,3986.7,1.40465]
[1733553070398,2.16863156,3987.2,3986.7,1.40465]
[1733553070597,0.86745262,3987.1,3986.7,1.40465]
[1733553070803,2.54631446,3987.3,3986.7,1.40465]
[1733553071010,0.8674511,3987.2,3986.7,1.40465]
[1733553071234,1.49469976,3987.3,3986.7,1.40465]
[1733553071420,0.86734983,3987.2,3986.7,1.40465]
[1733553071596,1.49469976,3987.3,3986.7,1.40465]
[1733553071894,0.86734473,3987.2,3986.7,1.40465]
[1733553072096,2.54631446,3987.3,3986.7,1.40465]
[1733553072294,1.29798586,3987.2,3986.5,2.21843]
[1733553072529,0.41203321,3987.2,3986.5,2.21843]
[1733553073401,0.01864143,3987.1,3986.5,2.21843]
[1733553073602,0.41203321,3987.2,3986.5,2.21843]
[1733553074400,1.08637856,3987.0,3986.5,2.21843]
[1733553074603,1.08637856,3987.0,3986.5,1.40473]
[1733553074937,1.34138121,3987.0,3986.5,1.40473]
[1733553076117,1.34138121,3987.0,3986.2,0.8212]
[1733553076433,1.34138121,3987.0,3986.3,1.40481]
[1733553078217,1.08637856,3986.7,3986.2,0.8212]
[1733553078752,1.34138121,3987.0,3986.2,0.8212]
[1733553078949,1.34138121,3987.0,3986.3,1.4048]
[1733553078950,0.17534144,3986.9,3986.3,1.4048]
[1733553079710,0.17534144,3986.9,3986.4,1.40477]
[1733553081049,0.17534144,3986.9,3986.2,2.22602]
[1733553081860,1.08637856,3986.4,3985.6,0.8212]
[1733553082027,1.08637856,3986.4,3986.0,1.40491]
[1733553082713,1.08637856,3986.4,3985.6,0.8212]
[1733553082916,1.08637856,3986.4,3985.6,0.84628748]
[1733553083111,1.08637856,3986.7,3986.1,1.40487]
[1733553083342,1.08637856,3986.7,3985.6,0.8212]
[1733553083922,0.86669036,3986.6,3985.6,0.8212]
[1733553084139,1.08637856,3986.7,3985.6,0.8212]
[1733553084926,1.08637856,3986.7,3986.0,1.4049]
[1733553085133,0.23133347,3986.6,3986.0,1.4049]
[1733553085327,1.08637856,3986.1,3985.6,0.8212]
[1733553085532,1.08637856,3986.1,3985.8,1.40498]
[1733553085739,1.08637856,3986.1,3985.6,0.8212]
[1733553086037,1.08637856,3986.1,3985.7,1.40502]
[1733553088257,1.08637856,3986.1,3985.6,0.8212]
[1733553088456,0.01864143,3986.0,3985.6,0.8212]
[1733553089035,1.08637856,3986.1,3985.6,0.8212]
[1733553089564,0.01864143,3986.0,3985.6,0.8212]
[1733553089724,1.08637856,3985.8,3985.3,0.7963]
[1733553089931,0.01864143,3985.7,3985.0,0.7963]
[1733553090133,1.08637856,3985.8,3985.2,1.40517]
[1733553091248,1.08637856,3985.8,3985.0,0.7963]
[1733553091560,1.08637856,3985.8,3985.1,1.40523]
[1733553094580,1.08637856,3985.5,3984.5,0.7529]
[1733553094780,1.08637856,3985.5,3984.9,1.40529]
[1733553095470,1.08637856,3985.5,3985.0,1.40526]
[1733553103163,1.08637856,3985.5,3985.1,1.40523]
[1733553111102,1.08637856,3985.5,3984.5,0.968736]
[1733553111351,1.08637856,3985.5,3985.1,1.40521]
[1733553111518,1.08637856,3985.5,3985.2,1.40519]
[1733553114096,1.0516147,3986.3,3985.9,1.40494]
[1733553114410,1.22695614,3986.9,3986.1,1.40486]
[1733553114573,1.08637856,3986.6,3986.2,1.40484]
[1733553115415,1.08637856,3986.6,3986.3,1.4048]
[1733553115619,1.26172,3986.9,3986.6,1.4047]
[1733553116321,1.26172,3986.9,3986.3,0.7992]
[1733553116500,1.26172,3986.9,3986.4,1.40477]
[1733553119391,1.26172,3986.9,3985.8,1.40496]
[1733553119392,1.26172,3986.9,3986.0,0.7992]
[1733553119594,1.08637856,3986.6,3986.2,1.40484]
[1733553119792,1.08637856,3986.6,3986.0,2.20409]
[1733553120023,0.23497953,3986.8,3985.3,0.7992]
[1733553120024,1.08637856,3986.2,3985.3,0.7992]
[1733553120241,1.08637856,3985.9,3985.6,1.40502]
[1733553120392,1.08637856,3986.2,3985.6,1.40502]
[1733553121998,1.32502714,3986.2,3985.6,1.40502]
[1733553122196,1.08637856,3986.2,3985.6,1.40502]
[1733553124515,1.08637856,3985.9,3985.4,1.40512]
[1733553124933,1.08637856,3985.9,3985.1,1.4052]
[1733553125151,1.08637856,3985.6,3985.1,1.4052]
[1733553125439,1.08637856,3985.6,3984.8,1.40531]
[1733553125640,1.08637856,3985.6,3984.7,0.7992]
[1733553125954,1.08637856,3985.6,3984.9,1.40529]
[1733553127426,1.08637856,3985.6,3984.7,0.7992]
[1733553127630,1.08637856,3985.6,3985.0,1.40526]
[1733553127947,1.08637856,3985.6,3985.0,1.40525]
[1733553129622,1.0516147,3986.0,3985.3,1.40514]
[1733553129821,1.08637856,3986.0,3985.4,1.40512]
[1733553130047,1.08637856,3986.0,3985.4,1.40509]
[1733553130261,1.08637856,3986.0,3985.6,1.40505]
[1733553130428,1.08637856,3986.0,3985.1,2.20442]
[1733553130429,1.37835223,3986.0,3985.1,0.7992]
[1733553131220,1.08637856,3986.0,3985.1,2.20443]
[1733553131556,1.08637856,3986.0,3985.5,1.40509]
[1733553132256,1.08637856,3986.0,3985.1,2.20443]
[1733553132257,1.08637856,3985.7,3985.1,2.20443]
[1733553132922,1.08637856,3985.7,3985.1,1.40523]
[1733553133657,1.08637856,3985.7,3984.5,1.40543]
[1733553133658,1.08637856,3985.7,3984.9,1.40528]
[1733553133900,0.21379933,3985.6,3984.9,1.40528]
[1733553135458,1.08637856,3985.3,3984.9,1.40528]
[1733553136123,1.08637856,3985.3,3984.5,2.15543]
[1733553136360,1.08637856,3985.6,3985.0,1.40524]
[1733553136867,1.08637856,3985.6,3984.5,0.75]
[1733553137030,1.08637856,3985.6,3985.1,1.40523]
[1733553138852,0.01781919,3985.5,3985.1,1.40523]
[1733553141074,0.01781919,3985.5,3984.6,1.40541]
[1733553141274,0.01781919,3985.5,3985.4,2.15512]
[1733553142042,0.01781919,3985.5,3985.4,1.40512]
[1733553145182,0.01781919,3985.5,3985.4,2.15512]
[1733553146179,9.19e-06,3985.5,3985.4,3.26658534]
[1733553146747,9.19e-06,3985.5,3985.4,3.24149856]
[1733553146950,9.19e-06,3985.5,3985.4,3.56815688]
[1733553152104,9.19e-06,3985.5,3985.4,3.59324155]
[1733553152269,9.19e-06,3985.5,3985.4,2.48177832]
[1733553154100,1.08637856,3986.6,3986.1,1.40485]
[1733553155890,2.35057426,3987.0,3985.4,0.75]
[1733553155891,1.08637856,3986.2,3985.4,0.75]
[1733553156305,1.08637856,3986.2,3985.9,1.40494]
[1733553157582,1.08637856,3986.2,3985.3,1.40513]
[1733553157908,1.08637856,3985.5,3984.7,0.8039]
[1733553158074,0.01864143,3985.4,3984.9,1.4053]
[1733553158268,1.08637856,3985.5,3984.9,1.4053]
[1733553158474,1.08637856,3985.5,3985.0,1.40526]
[1733553162794,1.08637856,3985.1,3983.9,0.8039]
[1733553162990,1.08637856,3984.7,3984.2,1.40554]
[1733553164699,0.01864143,3984.6,3983.9,1.40562]
[1733553165225,1.08637856,3984.4,3983.9,1.40562]
[1733553165418,0.01864143,3984.3,3983.9,1.40562]
[1733553165621,1.08637856,3984.4,3983.9,1.40562]
[1733553165810,1.08637856,3984.4,3983.4,2.16151]
[1733553166016,1.08637856,3984.4,3983.8,1.40568]
[1733553166599,1.07025613,3984.9,3983.8,1.40568]
[1733553166600,2.35732595,3984.7,3983.8,1.40568]
[1733553168099,2.35732595,3984.7,3983.2,0.0459676]
[1733553168100,2.35732595,3984.2,3983.2,0.0459676]
[1733553168322,0.01864143,3984.1,3983.2,0.0459676]
[1733553168629,0.01864143,3984.1,3983.4,1.40582]
[1733553169201,2.35732595,3983.8,3983.2,0.0459676]
[1733553169443,0.01864143,3983.7,3983.2,0.0459676]
[1733553170125,2.35732595,3983.8,3983.2,0.0459676]
[1733553171348,2.35732595,3983.8,3983.2,1.4518676]
[1733553172457,2.35732595,3983.8,3983.2,0.0459676]
[1733553172624,0.80038485,3984.5,3983.3,1.40583]
[1733553172625,2.35732595,3984.2,3983.3,1.40583]
[1733553172820,0.2357326,3984.1,3983.3,1.40583]
[1733553173830,0.2357326,3984.1,3983.4,1.40583]
[1733553174850,2.35732595,3984.2,3983.2,0.8751676]
[1733553175381,0.01864143,3984.1,3983.6,1.40575]
[1733553175686,2.35732595,3984.2,3983.6,1.40575]
[1733553176074,2.35732595,3984.2,3983.2,2.2810576]
[1733553176276,2.35732595,3984.2,3983.7,1.4057]
[1733553176591,0.2357326,3984.1,3983.7,1.4057]
[1733553176885,0.01864143,3984.0,3983.2,0.0459676]
[1733553177093,0.25437403,3984.1,3983.4,1.40581]
[1733553177248,0.2357326,3984.1,3983.4,1.40581]
[1733553177450,0.01864143,3984.0,3983.4,1.40581]
[1733553177655,0.26117,3984.0,3983.4,1.40581]
[1733553180027,0.26117,3984.0,3983.5,1.40578]
[1733553180223,2.35732595,3984.2,3983.5,1.40578]
[1733553180820,2.35732595,3984.2,3983.2,0.0459676]
[1733553181007,2.35732595,3984.2,3983.4,1.4058]
[1733553182186,2.35732595,3984.2,3983.5,1.40579]
[1733553182622,2.35732595,3984.2,3983.2,0.0459676]
[1733553182926,0.2357326,3984.1,3983.2,0.0459676]
[1733553183928,0.78174342,3984.7,3983.3,0.8292]
[1733553184305,0.01864143,3984.6,3983.6,1.40576]
[1733553184488,2.35732595,3985.0,3983.6,1.40576]
[1733553184689,2.35732595,3985.0,3984.1,1.40558]
[1733553184902,2.35732595,3984.6,3983.9,1.40564]
[1733553185101,0.23759674,3984.5,3983.9,1.40564]
[1733553185691,0.01864143,3984.4,3983.3,0.8292]
[1733553186036,0.23759674,3984.5,3983.7,1.40572]
[1733553186322,0.23759674,3984.5,3983.9,1.40564]
[1733553186893,0.23759674,3984.5,3983.3,0.8292]
[1733553187099,0.23759674,3984.5,3984.0,1.40561]
[1733553187303,0.25949227,3984.4,3984.0,1.40561]
[1733553187510,2.35732595,3984.6,3983.5,1.40579]
[1733553187716,2.35732595,3984.6,3984.1,1.40558]
[1733553188231,0.36693768,3984.9,3984.1,0.7593]
[1733553188632,1.08779744,3984.7,3984.4,1.40545]
[1733553188929,0.01864143,3984.6,3984.4,1.40545]
[1733553189117,1.08779744,3984.7,3984.4,1.40545]
[1733553190722,1.08779744,3984.7,3984.0,1.40559]
[1733553190922,1.08779744,3984.7,3984.5,1.40544]
[1733553194114,1.08779744,3984.7,3984.0,1.40559]
[1733553194115,0.36693768,3984.9,3984.2,0.8183]
[1733553194310,1.0516147,3986.3,3985.4,1.40512]
[1733553194545,0.78174342,3986.4,3985.5,1.40508]
[1733553194842,1.08779744,3985.8,3985.5,1.40508]
[1733553195714,0.80038485,3986.6,3985.6,1.40505]
[1733553195912,1.08779744,3985.9,3985.6,1.40505]
[1733553196548,2.3554969,3986.3,3985.6,1.40505]
[1733553196850,2.3554969,3986.3,3985.4,1.40511]
[1733553197050,0.53554969,3986.2,3985.5,1.40509]
[1733553198060,0.53554969,3986.2,3985.6,1.40505]
[1733553198630,0.53554969,3986.2,3984.8,0.8183]
[1733553198858,0.53554969,3986.2,3985.4,1.40511]
[1733553199227,0.53554969,3986.2,3984.8,0.8183]
[1733553199433,0.53554969,3986.2,3985.5,1.40509]
[1733553199634,0.2909688,3986.1,3985.5,1.40509]
[1733553200263,0.2909688,3986.1,3984.8,0.8183]
[1733553200442,2.3554969,3986.3,3985.5,1.40508]
[1733553201670,2.3554969,3986.3,3984.8,0.8183]
[1733553201870,2.3554969,3986.3,3985.1,1.40522]
[1733553202042,2.3554969,3986.3,3985.5,1.40507]
[1733553202456,2.3554969,3986.3,3985.1,1.40522]
[1733553202791,2.3554969,3986.3,3985.3,2.22346]
[1733553203336,2.3554969,3986.3,3985.5,1.40508]
[1733553203558,0.01864143,3986.2,3985.5,1.40508]
[1733553203866,0.01864143,3986.2,3985.3,1.40514]
[1733553204866,2.3554969,3986.3,3985.3,1.40514]
[1733553205038,0.30351454,3986.2,3985.3,1.40514]
[1733553205233,0.32215597,3986.2,3985.3,1.40514]
[1733553206154,0.32215597,3986.2,3985.1,1.40523]
[1733553207594,0.8629812,3986.1,3985.1,1.40523]
[1733553207795,1.61645882,3986.2,3985.1,1.40523]
[1733553207796,0.32215597,3986.2,3985.1,1.40523]
[1733553207962,0.54852776,3986.1,3985.1,1.40523]
[1733553210699,2.3554969,3985.9,3984.9,1.4053]
[1733553212300,2.37413833,3985.9,3984.9,1.4053]
[1733553212601,2.3554969,3985.9,3984.9,1.4053]
[1733553215006,2.3554969,3985.9,3984.5,0.816]
[1733553215313,0.29226661,3985.8,3984.7,1.40537]
[1733553217489,0.29226661,3985.8,3984.8,1.40533]
[1733553217812,0.29226661,3985.8,3984.5,2.443586]
[1733553218117,2.3554969,3985.9,3984.9,1.40529]
[1733553218319,2.3554969,3985.9,3985.0,1.40526]
[1733553218472,1.83335812,3986.0,3984.6,0.02509478]
[1733553218674,1.83335812,3986.0,3985.1,1.40521]
[1733553218675,1.08716869,3985.9,3985.1,1.40521]
[1733553219014,1.08716869,3985.5,3984.8,1.4053]
[1733553219508,1.08716869,3985.2,3984.6,1.40541]
[1733553219675,1.08716869,3985.2,3984.7,1.40536]
[1733553220413,1.08716869,3985.2,3984.8,1.40533]
[1733553220710,1.08716869,3985.5,3985.0,1.40526]
[1733553222195,1.08716869,3985.5,3984.9,1.40527]
[1733553222397,1.08716869,3985.5,3985.0,1.40526]
[1733553223184,1.08716869,3985.5,3984.6,0.2443556]
[1733553223415,1.08716869,3985.5,3985.1,1.40522]
[1733553226494,1.08716869,3985.5,3985.2,1.40517]
[1733553226820,1.29692209,3985.7,3985.2,1.40517]
[1733553227114,1.08716869,3985.8,3985.2,1.40517]
[1733553227496,1.0516147,3986.0,3985.4,1.40512]
[1733553227684,3.24888436,3985.9,3985.4,1.40512]
[1733553227880,2.16196251,3985.8,3985.4,1.40512]
[1733553228084,2.13878339,3985.9,3985.4,1.40512]
[1733553228321,0.86485478,3985.8,3985.4,1.40512]
[1733553228517,0.86510301,3985.7,3985.4,1.40512]
[1733553228721,2.13878339,3985.9,3985.4,1.40512]
[1733553228886,3.2143393,3985.8,3985.4,1.40512]
[1733553229087,0.86508984,3985.7,3985.4,1.40512]
[1733553229310,1.0516147,3985.8,3985.4,1.40512]
[1733553229629,2.16312197,3985.7,3985.4,1.40512]
[1733553229786,1.0516147,3985.8,3985.4,1.40512]
[1733553230092,0.86536065,3985.7,3985.4,1.40512]
[1733553230299,1.0516147,3985.8,3985.4,1.40512]
[1733553230492,2.16360681,3985.7,3984.6,2.2214]
[1733553230697,1.95253174,3985.6,3985.0,1.40526]
[1733553230923,1.08716869,3985.6,3985.0,1.40526]
[1733553231657,2.16421082,3985.5,3985.0,1.40526]
[1733553231802,2.13878339,3985.6,3985.0,1.40526]
[1733553231997,2.16422325,3985.5,3985.0,1.40526]
[1733553232203,0.8656893,3985.4,3985.0,1.40526]
[1733553232402,2.13878339,3985.6,3985.0,1.40526]
[1733553232596,2.16441915,3985.5,3985.0,1.40526]
[1733553232795,0.86568521,3985.4,3985.0,1.40526]
[1733553233089,2.13878339,3985.6,3985.0,1.40526]
[1733553233288,2.1646869,3985.5,3985.0,1.40526]
[1733553233517,2.16502544,3985.4,3985.0,1.40526]
[1733553233722,0.86587476,3985.3,3985.0,1.40526]
[1733553233928,1.0516147,3985.5,3985.0,1.40526]
[1733553234136,2.16523666,3985.4,3985.0,1.40526]
[1733553234426,0.86609466,3985.3,3985.0,1.40526]
[1733553234723,1.0516147,3985.5,3985.0,1.40526]
[1733553234911,3.21710196,3985.4,3985.0,1.40526]
[1733553235106,0.8661949,3985.3,3985.0,1.40526]
[1733553235319,1.0516147,3985.4,3985.0,1.40526]
[1733553235539,0.86624396,3985.3,3985.0,1.40526]
[1733553235739,1.0516147,3985.4,3985.0,1.40526]
[1733553235955,0.86639407,3985.3,3985.0,1.40526]
[1733553236251,1.0516147,3985.4,3985.0,1.40526]
[1733553236537,2.16594489,3985.3,3985.0,1.40526]
[1733553236714,0.86637988,3985.2,3985.0,1.40526]
[1733553237034,1.0516147,3985.4,3984.7,1.40534]
[1733553237232,2.16629587,3985.3,3984.8,1.40533]
[1733553237434,0.86651835,3985.2,3984.8,1.40533]
[1733553237604,1.0516147,3985.3,3984.8,1.40533]
[1733553237804,2.16659483,3985.2,3984.8,1.40533]
[1733553238003,0.86663454,3985.1,3984.8,1.40533]
[1733553238199,1.0516147,3985.3,3984.8,1.40533]
[1733553238404,2.16660857,3985.2,3984.9,1.4053]
[1733553238639,0.86664343,3985.1,3984.9,1.4053]
[1733553238938,1.0516147,3985.2,3984.9,1.4053]
[1733553239241,0.86678035,3985.1,3984.9,1.4053]
[1733553239438,1.0516147,3985.2,3984.9,1.4053]
[1733553239633,1.0516147,3985.2,3984.6,0.816]
[1733553239634,2.16734482,3985.1,3985.0,1.40526]
[1733553239933,2.16734482,3985.1,3985.0,2.314286]
[1733553239934,2.16732175,3985.1,3985.0,2.314286]
[1733553240149,0.86693793,3985.1,3985.0,2.314286]
[1733553240905,2.16731856,3985.1,3985.0,2.314286]
[1733553241744,2.16731856,3985.1,3985.0,1.40526]
[1733553242437,2.16731856,3985.1,3984.8,1.40533]
[1733553242644,0.86693793,3985.0,3984.8,1.40533]
[1733553242829,1.0516147,3985.1,3984.8,1.40533]
[1733553243032,0.86700872,3985.0,3984.8,1.40533]
[1733553243232,1.0516147,3985.1,3984.8,1.40533]
[1733553243431,0.86710133,3985.0,3984.9,1.4053]
[1733553243837,1.0516147,3985.2,3985.0,1.40524]
[1733553244012,0.86698252,3985.1,3985.0,1.40524]
[1733553244216,2.16739262,3985.1,3985.0,1.40524]
[1733553245924,1.0516147,3985.3,3985.0,0.140524]
[1733553246127,1.0516147,3985.3,3985.1,1.40523]
[1733553246128,0.86706756,3985.2,3985.1,1.40523]
[1733553246326,1.0516147,3985.5,3985.1,1.40523]
[1733553246514,2.16772377,3985.4,3985.3,1.40516]
[1733553246731,1.04873738,3985.7,3985.3,0.3719414]
[1733553246918,2.16793585,3985.6,3985.3,0.3719414]
[1733553247223,1.04873738,3985.7,3985.6,1.40505]
[1733553247441,3.21674425,3985.7,3985.6,1.40505]
[1733553248754,3.902414,3985.7,3985.0,1.40526]
[1733553248959,3.902414,3985.7,3984.9,0.7685]
[1733553248960,1.04877361,3985.4,3985.1,1.40522]
[1733553249185,2.16800687,3985.3,3985.1,1.40522]
[1733553249364,0.86720275,3985.2,3985.1,1.40522]
[1733553250031,3.21686116,3985.2,3985.1,1.40522]
[1733553250431,3.21686116,3985.2,3985.1,1.622592]
[1733553250636,2.16808755,3985.2,3985.1,2.391092]
[1733553250936,1.04877361,3985.6,3985.5,1.40509]
[1733553251134,3.21740041,3985.6,3985.5,2.17359]
[1733553252141,3.21725326,3985.6,3985.5,1.40509]
[1733553252474,3.21725326,3985.6,3985.2,2.17366]
[1733553252645,1.04877361,3985.4,3985.2,0.7685]
[1733553252847,1.04877361,3985.4,3985.3,1.40516]
[1733553253031,3.21708593,3985.4,3985.3,1.40516]
[1733553254564,3.90285345,3985.4,3984.7,1.40534]
[1733553254834,3.20450027,3985.5,3984.7,1.40534]
[1733553254835,1.04885857,3985.1,3984.7,1.40534]
[1733553255058,2.16818733,3985.0,3984.7,1.40534]
[1733553255230,2.16818733,3985.0,3984.6,0.8311]
[1733553255231,0.86727493,3984.9,3984.6,0.8311]
[1733553255443,1.04885857,3985.1,3984.8,1.40534]
[1733553255644,2.16814768,3985.0,3984.6,0.8311]
[1733553255947,1.04885857,3985.2,3985.0,1.40526]
[1733553256144,0.86726908,3985.1,3985.0,1.40526]
[1733553256446,2.16817287,3985.1,3985.0,1.40526]
[1733553256646,2.16817287,3985.1,3984.6,0.8311]
[1733553256852,2.16816438,3985.0,3984.8,1.40533]
[1733553257078,1.04885857,3985.1,3984.8,1.40533]
[1733553257260,2.16814472,3985.0,3984.8,1.40533]
[1733553257467,0.86725789,3984.9,3984.8,1.40533]
[1733553258249,0.86725789,3984.9,3984.6,0.8311]
[1733553258448,1.04885857,3985.1,3984.6,0.8311]
[1733553258678,1.04885857,3984.8,3984.3,0.8311]
[1733553258895,1.04885857,3984.8,3984.1,1.40556]
[1733553258896,1.04885857,3984.6,3984.1,1.40556]
[1733553259091,2.1682077,3984.5,3984.1,1.40556]
[1733553259296,0.86728308,3984.4,3984.2,1.40554]
[1733553259597,1.04885857,3984.6,3984.3,1.40551]
[1733553259748,2.16778281,3984.5,3984.0,2.23669]
[1733553259955,2.16769743,3984.4,3984.0,2.23669]
[1733553260150,0.86708088,3984.3,3984.1,1.40557]